lending/lending_fUSD_20250913
["ID","MTS","AMOUNT","RATE_DAILY","PERIOD"]
[385381735,1757802678735,-2137.62346258,0.00037237,120]
[385381736,1757802678745,-4137.62346258,0.00037237,60]
[385381737,1757802678754,-4137.62346258,0.00037237,30]
[385381738,1757802678763,-5862.37653742,0.00037237,30]
[385381739,1757802678772,-5862.37653741,0.00037237,15]
[385381740,1757802678782,-854.0,0.00037237,120]
[385381741,1757802678791,-187.89589274,0.00037237,30]
[385381742,1757802678800,-2456.86627168,0.00037237,90]
[385381743,1757802678810,-1698.40141848,0.00037237,120]
[385381744,1757802678818,-999.999994,0.00037237,120]
[385381745,1757802678828,-190.85379271,0.00037237,60]
[385381746,1757802678837,-2385.87278747,0.00037237,120]
[385381747,1757802678845,-1506.41740948,0.00037237,120]
[385381748,1757802678855,-968.14458332,0.00037237,120]
[385381749,1757802678864,-356.09210721,0.00037237,120]
[385381750,1757802678873,-39591.56918218,0.00037237,5]
[385381751,1757802678882,-1291.1666475,0.00037237,120]
[385381752,1757802678891,-154.60271561,0.00037237,120]
[385381753,1757802678899,-3138.43135198,0.00037237,30]
[385381754,1757802678908,-2929.08566654,0.00037237,30]
[385381755,1757802678917,-989.09270059,0.00037237,30]
[385381756,1757802678925,-2469.90865205,0.00037237,120]
[385381757,1757802678934,-597.9010159,0.00037237,120]
[385381758,1757802678947,-868.01386258,0.00037237,30]
[385381759,1757802678956,-2543.85862163,0.00037237,120]
[385381760,1757802678965,-316.10140003,0.00037237,30]
[385381761,1757802678975,-2299.44074906,0.00037237,120]
[385381762,1757802678985,-2251.83566371,0.00037237,120]
[385381763,1757802678994,-735.79638291,0.00037237,120]
[385381764,1757802679003,-2691.16950712,0.00037237,120]
[385381765,1757802679012,-2225.29674534,0.00037237,30]
[385381766,1757802679022,-447.39949436,0.00037237,30]
[385381767,1757802679031,-992.46763247,0.00037237,120]
[385381768,1757802679041,-1268.28020116,0.00037237,120]
[385381769,1757802679050,-4649.71099275,0.00037237,120]
[385381770,1757802679059,-3223.60691985,0.00037237,60]
[385381771,1757802679069,-1229.16533412,0.00037237,120]
[385381772,1757802679078,-538.38903991,0.00037237,30]
[385381773,1757802679087,-2173.04836703,0.00037237,60]
[385381774,1757802679095,-346.83851618,0.00037237,120]
[385381775,1757802679104,-3220.46511317,0.00037237,120]
[385381776,1757802679114,-4033.2897666,0.00037237,30]
[385381777,1757802679123,-2001.67123692,0.00037237,120]
[385381778,1757802679133,-2000.0,0.00037237,30]
[385381779,1757802679143,-293.87318294,0.00037237,120]
[385381780,1757802679152,-2647.75334724,0.00037237,60]
[385381781,1757802679162,-278.49147607,0.00037237,30]
[385381782,1757802679171,-627.85823539,0.00037237,120]
[385381783,1757802679181,-480.75623723,0.00037237,2]
[385381784,1757802679191,-420.84593612,0.00037237,2]
[385381785,1757802679200,-2151.20787589,0.00037237,120]
[385381786,1757802679209,-432.56399042,0.00037237,30]
[385381787,1757802679218,-45266.30685278,0.00037237,2]
[385381788,1757802679227,-3309.31350207,0.00037237,120]
[385381789,1757802679237,-1338.06582886,0.00037237,120]
[385381790,1757802679247,-524.32445654,0.00037237,120]
[385381791,1757802679256,-1434.10952767,0.00037237,120]
[385381792,1757802679265,-2946.00540264,0.00037237,120]
[385381793,1757802679275,-225.7514376,0.00037237,120]
[385381794,1757802679283,-626.56684294,0.00037237,120]
[385381795,1757802679293,-190.03574381,0.00037237,120]
[385381796,1757802679302,-3206.10147254,0.00037237,30]
[385381797,1757802679311,-1345.04928818,0.00037237,120]
[385381798,1757802679320,-3658.70606577,0.00037237,120]
[385381799,1757802679329,-2854.92120167,0.00037237,120]
[385381800,1757802679339,-349.842725,0.00037237,120]
[385381801,1757802679348,-1792.82020074,0.00037237,120]
[385381802,1757802679357,-1357.08638794,0.00037237,120]
[385381803,1757802679366,-197.27432748,0.00037237,60]
[385381804,1757802679376,-1362.6149322,0.00037237,120]
[385381805,1757802679385,-1668.8367243,0.00037237,120]
[385381806,1757802679395,-1346.60234424,0.00037237,120]
[385381807,1757802679406,-1542.91582219,0.00037237,75]
[385381808,1757802679416,-2137.16136687,0.00037237,120]
[385381809,1757802679425,-473.77349405,0.00037237,120]
[385381810,1757802679435,-165.97602405,0.00037237,30]
[385381811,1757802679444,-1761.93105356,0.00037237,120]
[385381812,1757802679453,-383.11427101,0.00037237,30]
[385381813,1757802679462,-375.37367273,0.00037237,120]
[385381814,1757802679471,-235.87970616,0.00037237,30]
[385381815,1757802679480,-1793.00219121,0.00037237,30]
[385381816,1757802679489,-2803.17208888,0.00037237,30]
[385381817,1757802679500,-1204.58027894,0.00037237,120]
[385381818,1757802679509,-2495.97606135,0.00037237,120]
[385381819,1757802679518,-1246.19080609,0.00037237,120]
[385381820,1757802679527,-2631.09089679,0.00037237,120]
[385381821,1757802679536,-1829.72163867,0.00037237,30]
[385381822,1757802679546,-2422.64717494,0.00037237,30]
[385381823,1757802679555,-310.53528434,0.00037237,120]
[385381824,1757802679565,-1188.23385327,0.00037237,60]
[385381825,1757802679574,-1522.13450708,0.00037237,30]
[385381826,1757802679583,-2624.03181006,0.00037237,30]
[385381827,1757802679592,-279.09453107,0.00037237,30]
[385381828,1757802679602,-1016.90581964,0.00037237,120]
[385381829,1757802679611,-1360.68076886,0.00037237,120]
[385381830,1757802679619,-249.55314454,0.00037237,60]
[385381831,1757802679628,-1179.5841217,0.00037237,120]
[385381832,1757802679637,-633.81159464,0.00037237,120]
[385381833,1757802679646,-2587.7380914,0.00037237,120]
[385381834,1757802679655,-858.1450697,0.00037237,120]
[385381835,1757802679664,-539.8130906,0.00037237,30]
[385381836,1757802679673,-2891.39158502,0.00037237,120]
[385381837,1757802679682,-571.98228998,0.00037237,120]
[385381838,1757802679691,-2340.42579569,0.00037237,120]
[385381839,1757802679699,-3028.81573555,0.00037237,30]
[385381840,1757802679708,-2630.93959048,0.00037237,120]
[385381841,1757802679717,-164.09251062,0.00037237,30]
[385381842,1757802679726,-3443.87478493,0.00037237,30]
[385381843,1757802679735,-921.72806125,0.00037237,30]
[385381844,1757802679744,-283.36822659,0.00037237,60]
[385381845,1757802679753,-87767.07888758,0.00037237,30]
[385381846,1757802679762,-1430.40299708,0.00037237,120]
[385381847,1757802679771,-2018.61372058,0.00037237,30]
[385381848,1757802679780,-1213.42421018,0.00037237,30]
[385381849,1757802679788,-312.05851973,0.00037237,120]
[385381850,1757802679797,-1400.04652397,0.00037237,30]
[385381851,1757802679806,-2309.96283664,0.00037237,30]
[385381852,1757802679816,-1286.17,0.00037237,31]
[385381853,1757802679824,-1935.36863401,0.00037237,30]
[385381854,1757802679834,-500.0,0.00037237,120]
[385381855,1757802679843,-150.11160304,0.00037237,120]
[385381856,1757802679853,-2163.8563507,0.00037237,120]
[385381857,1757802679863,-1202.55982797,0.00037237,120]
[385381858,1757802679871,-3816.34244,0.00037237,60]
[385381859,1757802679880,-328.02601,0.00037237,60]
[385381860,1757802679891,-3443.0761897,0.00037237,2]
[385381861,1757802679901,-20114045.54167566,0.00037237,30]
[385381862,1757802679910,-514.0,0.00037237,120]
[385381863,1757802679919,-2857.31823629,0.00037237,120]
[385381864,1757802679928,-2325.05195109,0.00037237,120]
[385381865,1757802679938,-5100.0,0.00037237,35]
[385381866,1757802679947,-432.90455301,0.00037237,120]
[385381867,1757802679956,-10049466.81881498,0.00037237,30]
[385381868,1757802679965,-60677.50297619,0.00037237,30]
[385381869,1757802679975,-11483.40494549,0.00037237,2]
[385381870,1757802679984,-6002.42727523,0.00037237,120]
[385381871,1757802679992,-1346.967488,0.00037237,120]
[385381872,1757802680002,-33553697.80581234,0.00037237,30]
[385381873,1757802680171,-441.96,0.00027671,2]
[385381874,1757802680181,-1784.06784995,0.00037237,30]
[385381875,1757802680319,150.0,0.00030049,120]
[385381876,1757802903211,2102.99140941,0.00027397,120]
[385381878,1757803681761,1000.0,0.00030136,120]
[385381879,1757803758129,-4271.8135908,0.000249,2]
[385381880,1757803758150,-573.3403172,0.00024977,3]
[385381894,1757803831638,-361.12512584,0.00025713,3]
[385381895,1757803831650,-1638.87487416,0.00025713,3]
[385381896,1757803831659,-6006.95486997,0.00026449,2]
[385381897,1757803831669,-151.0,0.00027385,2]
[385381898,1757803831678,-126.21894702,0.00027386,2]
[385381899,1757803831689,-723.78105298,0.00027386,2]
[385381900,1757803831698,-184.11345196,0.00027386,2]
[385381901,1757803831707,-294.01911377,0.00027386,2]
[385381902,1757803831718,-205.98088623,0.00027386,2]
[385381903,1757803831727,-500.0,0.00027386,2]
[385381904,1757803831737,-500.0,0.00027386,2]
[385381905,1757803831746,-500.0,0.00027386,2]
[385381906,1757803831755,-500.0,0.00027386,2]
[385381907,1757803831765,-500.0,0.00027386,2]
[385381908,1757803831774,-275.26100101,0.00027386,2]
[385381909,1757803831783,-424.8787464,0.00027386,2]
[385381910,1757803831794,-75.1212536,0.00027386,2]
[385381911,1757803831803,-500.0,0.00027386,2]
[385381912,1757803831812,-500.0,0.00027386,2]
[385381913,1757803831821,-500.0,0.00027386,2]
[385381914,1757803831830,-500.0,0.00027386,2]
[385381915,1757803831839,-500.0,0.00027386,2]
[385381916,1757803831848,-481.7677795,0.00027386,2]
[385381917,1757803831859,-18.2322205,0.00027386,2]
[385381918,1757803831868,-2000.0,0.0002739,3]
[385381919,1757803831877,-2000.0,0.0002739,3]
[385381920,1757803831886,-405.13,0.00027397,2]
[385381921,1757803831895,-210.87,0.00027397,2]
[385381922,1757803831904,-2000.0,0.00027475,3]
[385381923,1757803831913,-405.13,0.00027671,2]
[385381924,1757803831922,-167.0,0.00027782,2]
[385381925,1757803831931,-167.0,0.00027913,2]
[385381926,1757803831940,-405.13,0.00027945,2]
[385381927,1757803831950,-167.0,0.00027985,2]
[385381928,1757803831959,-1006.0,0.00028,2]
[385381929,1757803831969,-405.13,0.00028219,2]
[385381930,1757803831978,-167.0,0.0002827,2]
[385381931,1757803831987,-516.08899245,0.00028337,2]
[385381932,1757803831996,-405.13,0.00028493,2]
[385381933,1757803832006,-169.27,0.00028543,2]
[385381934,1757803832015,-5513.0,0.000287,5]
[385381935,1757803832024,-405.13,0.00028767,2]
[385381936,1757803832033,-722.20160884,0.00028891,2]
[385381937,1757803832043,-405.13,0.00029041,2]
[385381938,1757803832052,-405.13,0.00029315,2]
[385381939,1757803832061,-4939.3719837,0.00029506,2]
[385381940,1757803832070,-405.13,0.00029589,2]
[385381941,1757803832079,-2038.0,0.00029614,2]
[385381942,1757803832088,-3388.0,0.00029614,2]
[385381943,1757803832097,-887.0,0.00029614,2]
[385381944,1757803832106,-1047.522,0.00029614,2]
[385381945,1757803832115,-601.0,0.00029614,2]
[385381946,1757803832124,-1302.0,0.00029614,2]
[385381947,1757803832133,-1579.0,0.00029614,2]
[385381949,1757803832142,-568.0,0.00029614,2]
[385381951,1757803832151,-1177.0,0.00029614,2]
[385381953,1757803832160,-897.0,0.00029614,2]
[385381955,1757803832169,-812.0,0.00029614,2]
[385381957,1757803832178,-6173.0,0.00029614,2]
[385381959,1757803832187,-4168.0,0.00029614,2]
[385381961,1757803832195,-251.614,0.00029614,2]
[385381963,1757803832205,-726.0,0.00029614,2]
[385381965,1757803832214,-150.0,0.00029614,2]
[385381967,1757803832223,-475.12038748,0.0002975,3]
[385381969,1757803832232,-515.60081738,0.0002975,3]
[385381971,1757803832241,-160.0,0.0002975,3]
[385381973,1757803832251,-405.13,0.00029863,2]
[385381975,1757803832260,-602.27609822,0.000299,2]
[385381977,1757803832270,-405.13,0.00030136,2]
[385381979,1757803832279,-500.0,0.00030149,120]
[385381981,1757803832288,-602.27609822,0.000302,2]
[385381983,1757803832297,-212.99211257,0.00030396,2]
[385381985,1757803832306,-515.60081738,0.00030396,2]
[385381987,1757803832315,-160.0,0.00030396,2]
[385381989,1757803832324,-405.13,0.0003041,2]
[385381991,1757803832333,-150.0,0.00030454,2]
[385381993,1757803832343,-273.9185297,0.00030454,2]
[385381995,1757803832353,-150.0,0.00030454,2]
[385381997,1757803832361,-602.27609822,0.000305,2]
[385381998,1757803832370,-264.642,0.00030534,26]
[385382001,1757803832380,-184.08,0.00030661,120]
[385382003,1757803832389,-405.13,0.00030684,2]
[385382005,1757803832398,-150.0,0.00030728,2]
[385382007,1757803832407,-602.27609822,0.000308,2]
[385382009,1757803832416,-150.0,0.00030853,120]
[385382011,1757803832425,-150.0,0.00030853,7]
[385382013,1757803832434,-500.0,0.00030859,120]
[385382015,1757803832443,-2000.0,0.0003087,120]
[385382017,1757803832452,-163.21,0.00030921,120]
[385382019,1757803832461,-150.0,0.00030938,7]
[385382021,1757803832470,-405.13,0.00030958,2]
[385382022,1757803832479,-250.0,0.00031002,2]
[385382024,1757803832488,-500.0,0.00031029,120]
[385382026,1757803832497,-602.27609822,0.000311,2]
[385382029,1757803832508,-508.79,0.00031157,2]
[385382030,1757803832517,-405.13,0.00031232,2]
[385382033,1757803832527,-666.0,0.00031276,3]
[385382035,1757803832536,-500.0,0.0003131,120]
[385382036,1757803832545,-277.0614,0.00031326,2]
[385382039,1757803832555,-1436.79,0.00031386,120]
[385382041,1757803832564,-1478.5115,0.0003139,2]
[385382043,1757803832573,-831.3226,0.0003139,2]
[385382045,1757803832582,-1668.16,0.00031426,2]
[385382047,1757803832591,-638.69,0.00031426,2]
[385382049,1757803832600,-9999.99,0.00031426,2]
[385382051,1757803832609,-150.99,0.00031426,2]
[385382053,1757803832619,-405.13,0.00031506,2]
[385382055,1757803832628,-405.13,0.0003178,2]
[385382057,1757803832638,-173.07,0.00031821,2]
[385382059,1757803832646,-976.02,0.00032,2]
[385382061,1757803832655,-500.0,0.00032,12]
[385382063,1757803832666,-500.0,0.00032,12]
[385382064,1757803832676,-500.0,0.00032,12]
[385382065,1757803832685,-500.0,0.00032,12]
[385382066,1757803832694,-500.0,0.00032,12]
[385382067,1757803832703,-500.0,0.00032,12]
[385382068,1757803832712,-213.72677004,0.00032,12]
[385382069,1757803832721,-500.0,0.00032,12]
[385382070,1757803832730,-500.0,0.00032,12]
[385382071,1757803832739,-500.0,0.00032,12]
[385382072,1757803832747,-500.0,0.00032,12]
[385382073,1757803832756,-500.0,0.00032,12]
[385382074,1757803832765,-500.0,0.00032,12]
[385382075,1757803832774,-500.0,0.00032,12]
[385382076,1757803832782,-500.0,0.00032,12]
[385382077,1757803832791,-405.13,0.00032054,2]
[385382078,1757803832800,-405.13,0.00032328,2]
[385382079,1757803832809,-500.0,0.0003247,120]
[385382080,1757803832818,-2000.0,0.0003247,120]
[385382081,1757803832827,-500.0,0.0003247,120]
[385382082,1757803832835,-500.0,0.0003247,120]
[385382084,1757803832844,-405.13,0.00032602,2]
[385382085,1757803832853,-2038.0,0.00032614,2]
[385382087,1757803832862,-3388.0,0.00032614,2]
[385382089,1757803832871,-543.633,0.00032614,2]
[385382091,1757803832881,-601.0,0.00032614,2]
[385382093,1757803832890,-1302.0,0.00032614,2]
[385382095,1757803832899,-1579.0,0.00032614,2]
[385382097,1757803832908,-568.0,0.00032614,2]
[385382099,1757803832917,-1177.0,0.00032614,2]
[385382101,1757803832926,-897.0,0.00032614,2]
[385382103,1757803832935,-296.829,0.00032614,2]
[385382105,1757803832944,-2555.11510787,0.00032614,2]
[385382119,1757803833065,-578.1981307,0.00029614,2]
[385382121,1757803833077,-5545.7918693,0.00029614,2]
[385382123,1757803833086,-3617.88489213,0.00032614,2]
[385382125,1757803833096,-2430.59123858,0.00032614,2]
[385382128,1757803833107,-493.61014242,0.00032614,2]
[385382130,1757803833119,-1243.798619,0.00032614,2]
[385382132,1757803833128,-726.0,0.00032614,2]
[385382134,1757803833137,-405.13,0.00032876,2]
[385382136,1757803833147,-160.13,0.00032908,2]
[385382138,1757803833156,-405.13,0.0003315,2]
[385382140,1757803833166,-210.87,0.00033165,2]
[385382142,1757803833175,-405.13,0.00033424,2]
[385382144,1757803833184,-405.13319957,0.00033698,2]
[385382146,1757803833193,-130.91926851,0.00034101,7]
[385382148,1757803833204,-369.08073149,0.00034101,7]
[385382150,1757803833213,-233.37093014,0.00034101,7]
[385382152,1757803833224,-1066.62906986,0.00034101,7]
[385382154,1757803833233,-160.13,0.00034278,2]
[385382156,1757803833242,-163.21,0.00034787,120]
[385382158,1757803833251,-500.0,0.00034917,120]
[385382160,1757803833261,-500.0,0.00034923,7]
[385382162,1757803833270,-1300.0,0.00034923,7]
[385382164,1757803833279,-1961.64876927,0.00035,2]
[385382166,1757803833291,-1346.70969132,0.00035,2]
[385382169,1757803833302,-6691.64153941,0.00035,2]
[385382171,1757803833311,-1436.79,0.00035309,120]
[385382173,1757803833321,-214.0,0.000354,2]
[385382175,1757803833330,-500.0,0.00035509,120]
[385382177,1757803833340,-1685.269,0.00035614,2]
[385382179,1757803833349,-3388.0,0.00035614,2]
[385382181,1757803833359,-601.0,0.00035614,2]
[385382183,1757803833368,-1302.0,0.00035614,2]
[385382185,1757803833377,-1579.0,0.00035614,2]
[385382187,1757803833386,-568.0,0.00035614,2]
[385382189,1757803833395,-1177.0,0.00035614,2]
[385382191,1757803833404,-897.0,0.00035614,2]
[385382193,1757803833413,-6173.0,0.00035614,2]
[385382195,1757803833423,-4168.0,0.00035614,2]
[385382197,1757803833432,-726.0,0.00035614,2]
[385382199,1757803833441,-240.29724975,0.00035616,2]
[385382201,1757803833450,-500.0,0.00035745,7]
[385382203,1757803833460,-1300.0,0.00035745,7]
[385382205,1757803833469,-2000.0,0.00035842,120]
[385382207,1757803833482,-500.0,0.00035867,120]
[385382209,1757803833491,-471.73,0.00036044,2]
[385382211,1757803833500,-266.97,0.00036044,2]
[385382213,1757803833509,-471.73,0.00036044,2]
[385382215,1757803833519,-471.73,0.00036044,2]
[385382216,1757803833528,-471.73,0.00036044,2]
[385382219,1757803833538,-1698.39697736,0.00036119,2]
[385382220,1757803833547,-500.0,0.00036567,7]
[385382223,1757803833559,-1300.0,0.00036567,7]
[385382224,1757803833568,-210.0,0.0003658,2]
[385382226,1757803833578,-2500.0,0.00036855,2]
[385382228,1757803833587,-2500.0,0.00036875,7]
[385382230,1757803833596,-160.0,0.00036875,7]
[385382232,1757803833605,-2500.0,0.00036884,7]
[385382234,1757803833614,-2500.0,0.00036893,7]
[385382236,1757803833625,-2500.0,0.00036902,7]
[385382238,1757803833634,-2500.0,0.0003691,7]
[385382240,1757803833643,-5800.0,0.00036913,2]
[385382242,1757803833653,-2500.0,0.00036919,7]
[385382244,1757803833662,-1211.0,0.00036928,5]
[385382246,1757803833671,-2500.0,0.00036928,7]
[385382248,1757803833680,-2500.0,0.00036937,7]
[385382250,1757803833689,-599.93,0.00036937,7]
[385382252,1757803833698,-2500.0,0.00036946,7]
[385382254,1757803833707,-2500.0,0.00036954,7]
[385382256,1757803833718,-2500.0,0.00036963,7]
[385382258,1757803833728,-2500.0,0.00036972,7]
[385382261,1757803833737,-1500.0,0.00037,120]
[385382262,1757803833747,-295.29,0.00037003,2]
[385382264,1757803833756,-500.0,0.00037007,7]
[385382266,1757803833765,-679.964,0.00037037,2]
[385382268,1757803833774,-3064.51205354,0.00037037,9]
[385382270,1757803833783,-1023.0,0.00037048,8]
[385382272,1757803833793,-2432.24,0.00037067,2]
[385382274,1757803833802,-3266.91,0.00037067,2]
[385382276,1757803833812,-173.07,0.00037073,2]
[385382279,1757803833821,-312.17688689,0.00037084,15]
[385382280,1757803833831,-312.17688685,0.00037087,15]
[385382298,1757803834013,-312.17688685,0.0003709,15]
[385382299,1757803834023,-312.17688685,0.00037093,15]
[385382300,1757803834033,-312.17688685,0.00037096,15]
[385382301,1757803834042,-312.17688685,0.000371,15]
[385382302,1757803834051,-150.0,0.000371,2]
[385382303,1757803834060,-500.0,0.000371,7]
[385382304,1757803834070,-312.17688685,0.00037103,15]
[385382305,1757803834079,-279.84865366,0.00037103,2]
[385382306,1757803834088,-312.17688685,0.00037106,15]
[385382307,1757803834097,-356.66985271,0.00037106,2]
[385382308,1757803834107,-312.17688685,0.00037109,15]
[385382309,1757803834115,-433.49105175,0.00037109,2]
[385382310,1757803834124,-5000.0,0.00037112,2]
[385382311,1757803834133,-510.3122508,0.00037112,2]
[385382312,1757803834142,-413.6848606,0.00037112,2]
[385382313,1757803834151,-312.17688685,0.00037112,15]
[385382314,1757803834161,-367.02755013,0.00037112,7]
[385382315,1757803834170,-401.57572226,0.00037112,2]
[385382316,1757803834180,-951.41839663,0.00037112,2]
[385382317,1757803834188,-587.13344984,0.00037115,2]
[385382318,1757803834197,-3338.77,0.00037117,2]
[385382319,1757803834206,-663.95464888,0.00037118,2]
[385382320,1757803834215,-740.77584793,0.00037121,2]
[385382321,1757803834225,-817.59704697,0.00037124,2]
[385382322,1757803834234,-400.0,0.00037126,2]
[385382323,1757803834243,-164.72280477,0.00037126,2]
[385382324,1757803834253,-400.0,0.00037126,2]
[385382325,1757803834263,-115347.197568,0.00037127,4]
[385382326,1757803834272,-3338.77,0.00037127,2]
[385382327,1757803834281,-894.41824602,0.00037127,2]
[385382328,1757803834290,-600.0,0.00037127,7]
[385382329,1757803834299,-498.37,0.00037136,2]
[385382330,1757803834308,-397.7436994,0.00037136,2]
[385382331,1757803834318,-400.0,0.00037136,2]
[385382332,1757803834327,-450.17128299,0.00037136,2]
[385382333,1757803834336,-400.0,0.00037136,2]
[385382334,1757803834345,-400.0,0.00037136,2]
[385382335,1757803834354,-1000.0,0.00037137,2]
[385382336,1757803834363,-29063.0285,0.00037137,2]
[385382337,1757803834372,-191308.8106,0.00037137,2]
[385382338,1757803834381,-500.0,0.00037173,7]
[385382339,1757803834390,-150.0,0.00037195,2]
[385382340,1757803834399,-150.0,0.00037195,2]
[385382341,1757803834408,-213.0,0.000372,19]
[385382342,1757803834417,-1000.0,0.000372,7]
[385382343,1757803834426,-164.91,0.00037202,2]
[385382344,1757803834435,-164.91,0.00037202,2]
[385382345,1757803834445,-164.91,0.00037202,2]
[385382346,1757803834454,-164.91,0.00037202,2]
[385382347,1757803834463,-164.91,0.00037202,2]
[385382348,1757803834472,-164.91,0.00037202,2]
[385382349,1757803834481,-441.83107694,0.00037202,2]
[385382350,1757803834490,-441.83107694,0.00037202,2]
[385382351,1757803834499,-441.83107694,0.00037202,2]
[385382352,1757803834508,-2000.0,0.00037202,3]
[385382353,1757803834516,-16478.1710812,0.00037207,4]
[385382354,1757803834525,-999.0,0.00037211,120]
[385382355,1757803834535,-2735.15207722,0.00037211,2]
[385382356,1757803834544,-438.26428641,0.00037211,2]
[385382357,1757803834552,-23314.92205956,0.00037211,2]
[385382358,1757803834562,-210.59837222,0.00037212,2]
[385382359,1757803834570,-210.59837222,0.00037212,2]
[385382360,1757803834579,-210.59837222,0.00037212,2]
[385382361,1757803834588,-228005.57928939,0.00037212,30]
[385382362,1757803834600,-2921.71855915,0.00037212,30]
[385382363,1757803834611,-23318.48484677,0.00037212,30]
[385382364,1757803834622,-54553.46780639,0.00037212,30]
[385382365,1757803834633,-797.84386419,0.00037212,30]
[385382366,1757803834644,-1812.09125569,0.00037212,30]
[385382367,1757803834654,-357.0363872,0.00037212,30]
[385382368,1757803834665,-1592.63010587,0.00037212,30]
[385382369,1757803834675,-5403.1339754,0.00037212,30]
[385382370,1757803834686,-1264.29844031,0.00037212,30]
[385382382,1757803837560,-153.39560952,0.00031389,2]
[385382383,1757803837570,-500.0,0.00031389,2]
[385382384,1757803837579,-306.44351645,0.00031389,2]
[385382385,1757803837588,-185.68828162,0.00031389,2]
[385382386,1757803837597,-6973.3983102,0.00037212,30]
[385382387,1757803837671,-1664.00659169,0.00037212,30]
[385382388,1757803837732,-758.5512768,0.00037212,30]
[385382389,1757803837848,-1290.70124987,0.00037212,30]
[385382520,1757803839709,-268.51,0.00036169,2]
[385382521,1757803839719,-285.79,0.00036169,2]
[385382522,1757803839728,-605.7,0.00037212,30]
[385382523,1757803839740,-16133.52979495,0.00037212,30]
[385382524,1757803839753,-817.68834929,0.00037212,30]
[385382525,1757803839765,-3125.49190937,0.00037212,30]
[385382526,1757803839776,-2450.08099561,0.00037212,30]
[385382527,1757803839787,-3627.02391473,0.00037212,30]
[385382528,1757803839932,-3389.13001195,0.00037212,30]
[385382538,1757803844443,-778.344483,0.00029614,2]
[385382539,1757803844454,-398.655517,0.00029614,2]
[385382540,1757803844464,-215.42,0.00036169,2]
[385382541,1757803844474,-307.79937745,0.00037212,30]
[385382657,1757803845964,-1177.0,0.00032614,2]
[385382658,1757803845974,-477.6,0.00037111,2]
[385382659,1757803845983,-4098.7744,0.00037212,30]
[385382660,1757803845994,-1111.08777494,0.00037212,30]
[385382666,1757804092541,173.01,0.00017079,2]
[385382667,1757804197032,3490.83,0.00030137,120]
[385382668,1757804792127,-517.28456117,0.00021995,3]
[385382682,1757805031923,-2000.0,0.00022164,3]
[385382683,1757805031933,-2000.0,0.00022198,3]
[385382684,1757805031942,-213.19462681,0.00022232,2]
[385382685,1757805031952,-447.83317497,0.00023192,3]
[385382686,1757805031962,-300.0,0.00023685,2]
[385382687,1757805031971,-1200.0,0.00024193,2]
[385382688,1757805031980,-2000.0,0.00024194,3]
[385382689,1757805031990,-129.4602614,0.0002438,4]
[385382690,1757805032001,-20.5397386,0.0002438,4]
[385382691,1757805032011,-1242.0089837,0.0002438,3]
[385382692,1757805032025,-757.9910163,0.0002438,3]
[385382693,1757805032035,-300.0,0.0002461,2]
[385382694,1757805032044,-2148.34985425,0.000249,2]
[385382695,1757805032057,-689.70354623,0.000249,2]
[385382696,1757805032076,-1351.27427606,0.000249,2]
[385382697,1757805032085,-1568.94170421,0.00025104,2]
[385382698,1757805032097,-267.55810984,0.00025104,2]
[385382699,1757805032106,-173.01,0.00025618,2]
[385382700,1757805032115,-1047.38725016,0.00026351,2]
[385382701,1757805032126,-632.61274984,0.00026351,2]
[385382702,1757805032136,-515.0,0.00027137,2]
[385382703,1757805032145,-189.78,0.00027397,2]
[385382704,1757805032154,-374.0,0.00029613,2]
[385382705,1757805032163,-150.0,0.00029614,2]
[385382706,1757805032172,-329.149,0.00029614,2]
[385382707,1757805032181,-1565.917,0.00029614,2]
[385382708,1757805032191,-90.87293416,0.00029614,2]
[385382709,1757805032202,-477.12706584,0.00029614,2]
[385382710,1757805032211,-32.87293416,0.00029614,2]
[385382711,1757805032222,-539.32061941,0.00029614,2]